Cogmind - Beta 14 @@@ ROGUE MODE // 2025.04.27 @ 20:01:58 Player: Zaros426 Result: Destroyed by D-53 Grenadier with Mini Grenade Launcher Performance ------------- Evolutions (0) 0 Regions Visited (4) 800 Robots Destroyed (43) 215 Value Destroyed (746) 746 Prototype IDs (26) 520 Alien Tech Used (0) 0 Bonus (300) 300 TOTAL SCORE: 2581 Bonus ------- Aligned with FarCom 300 Cogmind --------- Core Integrity 0/250 Matter 267/300 Energy 60/250 System Corruption 0% Temperature Cool (9) Movement Treading (240) Ox1 Location -9/Mines Parts ------- > --- POWER (1) -------- Ion Engine > --- PROPULSION (2) --- Light Treads Light Treads > --- UTILITY (2) ------ High-capacity Storage Unit > --- WEAPON (2) ------- Improved Light Cannon Improved Light Cannon > --- INVENTORY (20) --- Light Treads Light Treads Light Treads Light Treads Light Treads Light Treads Large Battery (200) Structural Scanner Experimental Sensor Array Seismic Detector Transport Network Coupler Cloak of Protection Trap Reconfigurator EM Pulse Gun Improved Light Cannon Mining Laser Longsword +1 Peak State ------------ > --- POWER ------------ Ion Engine > --- PROPULSION ------- Light Treads Light Treads > --- UTILITY ---------- High-capacity Storage Unit Cloak of Protection > --- WEAPON ----------- Mini Grenade Launcher Mini Grenade Launcher > --- INVENTORY -------- Ion Engine Light Treads Light Treads Light Treads Light Treads Light Treads Light Treads Large Battery High-capacity Matter Pod Experimental Sensor Array Seismic Detector Transport Network Coupler Trap Reconfigurator Improved Light Cannon Improved Light Cannon Improved Light Cannon Improved Light Cannon Mining Laser Longsword +1 [Rating: 20] Favorites ----------- Power Ion Engine Engine Ion Engine Propulsion Light Treads Treads Light Treads Utility High-capacity Storage Unit Device Structural Scanner Storage High-capacity Storage Unit Protection Light Armor Plating Weapon Improved Light Cannon Energy Gun EM Pulse Gun Ballistic Gun Assault Rifle Ballistic Cannon Improved Light Cannon Launcher Mini Grenade Launcher Special Weapon Mining Laser Slashing Weapon Longsword +1 Build | -11 -10 -10 -10 -9 ------- Run | Yrd Mat Min Exi Min Slots Evolved . | . . . . . Power . | . . . . . Propulsion . | . . . . . Utility . | . . . . . Weapon . | . . . . . Parts Attached 40 | 7 20 2 1 10 Power 4 | 1 2 . . 1 Engine 4 | 1 2 . . 1 Core . | . . . . . Reactor . | . . . . . Propulsion 7 | 2 3 1 . 1 Treads 7 | 2 3 1 . 1 Leg . | . . . . . Wheel . | . . . . . Hover . | . . . . . Flight . | . . . . . Utility 10 | 1 5 1 1 2 Device 4 | . 1 1 1 1 Storage 5 | 1 3 . . 1 Processor . | . . . . . Hackware . | . . . . . Protection 1 | . 1 . . . Artifact . | . . . . . Weapon 19 | 3 10 . . 6 Energy Gun 4 | 2 2 . . . Energy Cannon . | . . . . . Ballistic Gun 3 | 1 2 . . . Ballistic Cannon 7 | . 4 . . 3 Launcher 2 | . . . . 2 Special Weapon 2 | . 2 . . . Impact Weapon . | . . . . . Slashing Weapon 1 | . . . . 1 Piercing Weapon . | . . . . . Special Melee Weapon . | . . . . . Unidentified Prototypes 1 | . . 1 . . Parts Lost 5 | . 2 . . 3 Power 1 | . . . . 1 Propulsion . | . . . . . Utility 1 | . . . . 1 Weapon 3 | . 2 . . 1 Highest Loss Streak 3 | . 1 . . 3 To Critical Strikes . | . . . . . Average Slot Usage (%) 96 | . 99 87 99 100 Engine 14 | . 14 14 14 14 Treads 27 | . 27 28 28 28 Device 4 | . 2 . 13 3 Storage 15 | . 14 14 14 24 Protection 5 | . 10 2 . . Energy Gun 2 | . 6 . . . Ballistic Gun 3 | . 8 . . . Ballistic Cannon 18 | . 12 28 28 6 Launcher 1 | . . . . 11 Slashing Weapon 1 | . . . . 10 Peak Build Rating 20 | 6 11 19 14 20 Average Rating 11 | 5 8 10 13 18 On Entrance 8 | . 6 11 11 14 Naked Turns . | . . . . . Heaviest Build 56 | 13 56 56 54 56 Greatest Support 40 | 40 40 40 40 40 Greatest Overweight (x) 3 | 3 1 1 1 1 Average Overweight (x) . | . . 1 1 1 Largest Inventory Capacity 20 | 8 20 20 20 20 Average Capacity 17 | 7 15 20 20 20 Most Carried 20 | 4 17 18 20 20 Average Carried 15 | 2 12 17 19 19 Final Capacity 20 | 8 20 20 20 20 Final Carried 20 | 4 16 18 20 17 Class Distribution -------------------- 100% | Mutant Dominant Class ---------------- Mutant | -10/Materials Mutant | -10/Mines Mutant | -10/Exiles Mutant | -9/Mines Resources | -11 -10 -10 -10 -9 ----------- Run | Yrd Mat Min Exi Min Matter Collected 1332 | 298 624 170 . 240 Remotely . | . . . . . Salvage Created 1449 | 216 900 224 . 109 Parts 89 | 20 46 16 . 7 Haulers Intercepted 2 | . 2 . . . Recyclers Shooed 1 | . 1 . . . Parts Field Recycled . | . . . . . Retrieved Matter . | . . . . . Parts Self-Destructed . | . . . . . Prevented . | . . . . . Kills | -11 -10 -10 -10 -9 ------- Run | Yrd Mat Min Exi Min Combat Hostiles Destroyed 38 | . 12 6 . 20 Melee 2 | . . . . 2 Guns 10 | . 10 . . . Cannons 9 | . 2 6 . 1 AOE 17 | . . . . 17 Classes Destroyed 11 | 3 6 . . 2 Worker 2 | 2 . . . . Builder 3 | . 2 1 . . Tunneler 7 | 6 . . . 1 Hauler 2 | . 2 . . . Recycler 6 | 1 3 2 . . Operator 1 | . 1 . . . Watcher 3 | . 3 . . . Swarmer 7 | . 3 4 . . Grunt 11 | . 9 2 . . Demolisher 1 | . . . . 1 Assembled 19 | . . . . 19 Best Kill Streak 16 | 6 4 5 . 16 Combat Bots Only 16 | . 3 2 . 16 Max Kills in Single Turn 5 | 1 1 1 . 5 Gunslinging . | . . . . . Exploded 5 | . . . . 5 Melee 1 | . . . . 1 Uniques/NPCs Destroyed . | . . . . . Combat | -11 -10 -10 -10 -9 -------- Run | Yrd Mat Min Exi Min Hostile Shots Fired 134 | . 62 43 . 29 Missed 34 | . 15 14 . 5 Damage Taken 1406 | . 550 297 . 559 Core 250 | . 54 61 . 135 Absorbed by Shields . | . . . . . Core Remaining (%) 100 | 100 . . . . Volleys Fired 126 | 28 67 20 . 11 Largest 2 | 2 2 2 . 2 Hottest 100 | 60 100 78 . 78 Shots Fired 238 | 48 128 40 . 22 Gun 154 | 48 106 . . . Cannon 62 | . 16 40 . 6 Launcher 16 | . . . . 16 Special 6 | . 6 . . . Kinetic 146 | 28 72 40 . 6 Thermal 24 | 18 6 . . . Explosive 16 | . . . . 16 Electromagnetic 52 | 2 50 . . . Robot Hit Streak 15 | 9 15 6 . 4 Robot Miss Streak 5 | 4 5 4 . 2 Penetration Max . | . . . . . Secondary Targets 2 | . 2 . . . Max Gunslinging Chain 1 | . 1 . . . Shots Hit Robots 140 | 28 82 19 . 11 Core Hits 90 | 13 34 9 . 34 Critical Kills 1 | 1 . . . . Critical Parts Destroyed . | . . . . . Critical Strikes 6 | 1 1 3 . 1 Destroy 1 | 1 . . . . Blast 5 | . 1 3 . 1 Melee Attacks 4 | . . . . 4 Impact . | . . . . . Slashing 4 | . . . . 4 Piercing . | . . . . . Sneak Attacks 1 | . . . . 1 Combat Hostiles . | . . . . . Follow-up Attacks . | . . . . . Damage Inflicted 3413 | 254 1236 412 . 1511 Guns 1225 | 254 971 . . . Cannons 696 | . 241 412 . 43 Explosions 1267 | . . . . 1267 Melee 201 | . . . . 201 Ramming . | . . . . . Kinetic 1329 | 119 755 412 . 43 Thermal 134 | 110 24 . . . Explosive 1267 | . . . . 1267 Electromagnetic 482 | 25 457 . . . Impact . | . . . . . Slashing 201 | . . . . 201 Piercing . | . . . . . Highest Corruption . | . . . . . Average Corruption . | . . . . . Corruption Purged . | . . . . . Corruption Blocked . | . . . . . Overload Shots . | . . . . . Overflow Damage 149 | . 14 21 . 114 Projectiles 35 | . 14 21 . . Explosions 62 | . . . . 62 Melee 52 | . . . . 52 Knockbacks 8 | . 4 4 . . Impact . | . . . . . Kinetic 7 | . 3 4 . . Secondary 1 | . 1 . . . Self-Inflicted Damage 30 | . . . . 30 Shots 2 | . . . . 2 Rammed . | . . . . . Targets Rammed . | . . . . . Kicked . | . . . . . Crushed . | . . . . . Highest Temperature 145 | 40 145 141 . 40 Average Temperature 38 | 19 35 60 . 25 Received Heat Transfer 435 | . 300 75 . 60 Siege Activations . | . . . . . Robots Corrupted . | . . . . . Combat Hostiles . | . . . . . Parts Fried 4 | . 4 . . . Impact Corruptions . | . . . . . Robots Melted . | . . . . . Combat Hostiles . | . . . . . Parts Melted . | . . . . . Heat Transferred 300 | 250 50 . . . Parts Sabotaged . | . . . . . Parts Stolen . | . . . . . Parts Stripped . | . . . . . Power Chain Reactions . | . . . . . Alert | -11 -10 -10 -10 -9 ------- Run | Yrd Mat Min Exi Min Peak Influence 214 | 45 214 116 . 110 Initial 29 | . 29 . . . Average 63 | 24 84 38 . 56 Maximum Alert Level 1 | . 1 . . . Low Security (%) 99 | 100 98 100 . 100 Level 1 . | . 1 . . . Level 2 . | . . . . . Level 3 . | . . . . . Level 4 . | . . . . . Level 5 . | . . . . . High Security . | . . . . . Max Security . | . . . . . Squads Dispatched 2 | . 2 . . . Investigation 2 | . 2 . . . Extermination . | . . . . . Reinforcement . | . . . . . Assault . | . . . . . Garrison . | . . . . . Intercept . | . . . . . Searches Triggered . | . . . . . Construction Impeded . | . . . . . Haulers Reinforced . | . . . . . Active Scanning Responses . | . . . . . Cargo Convoy Interrupts . | . . . . . Stealth | -11 -10 -10 -10 -9 --------- Run | Yrd Mat Min Exi Min Distress Signals 1 | . 1 . . . Communications Jammed . | . . . . . Distress Signals . | . . . . . Times Spotted 49 | . 18 8 . 23 Peak Tracking Total 20 | . 4 3 . 20 Tactical Retreats 2 | . 1 . . 1 Traps | -11 -10 -10 -10 -9 ------- Run | Yrd Mat Min Exi Min Traps Triggered 1 | . 1 . . . Indirectly . | . . . . . Trap Hack Attempts . | . . . . . Triggered . | . . . . . Disarmed . | . . . . . Reprogrammed . | . . . . . Reused . | . . . . . Traps Extracted . | . . . . . Installed . | . . . . . Triggered . | . . . . . Machines | -11 -10 -10 -10 -9 ---------- Run | Yrd Mat Min Exi Min Machines Disabled 4 | . . 2 . 2 Max in Single Turn 1 | . . 1 . 1 Machines Repaired . | . . . . . Machines Dismantled . | . . . . . Machines Sabotaged . | . . . . . Overloaded Fab Kills . | . . . . . Hacking | -11 -10 -10 -10 -9 --------- Run | Yrd Mat Min Exi Min Machines Accessed 13 | . 11 . 2 . Terminals 8 | . 8 . . . Fabricators . | . . . . . Repair Stations 1 | . 1 . . . Recycling Units 2 | . 2 . . . Scanalyzers . | . . . . . Garrison Access . | . . . . . Total Hacks 55 | . 31 . 24 . Successful 41 | . 17 . 24 . Failed 13 | . 13 . . . Catastrophic . | . . . . . Database Lockouts 1 | . 1 . . . Manual 22 | . 21 . 1 . Terminals 28 | . 28 . . . Fabricators . | . . . . . Repair Stations 1 | . 1 . . . Recycling Units 2 | . 2 . . . Scanalyzers . | . . . . . Garrison Access . | . . . . . Terminal Hacks 33 | . 9 . 24 . Record 24 | . 1 . 23 . Robot Analysis 2 | . 2 . . . Prototype ID Bank 1 | . 1 . . . Emergency Access Points 2 | . 2 . . . Terminal Index 1 | . 1 . . . Locate Traps 2 | . 2 . . . Derelict Proto ID Bank 1 | . . . 1 . Fabricator Hacks . | . . . . . Repair Station Hacks . | . . . . . Recycling Unit Hacks . | . . . . . Scanalyzer . | . . . . . Garrison Access Hacks . | . . . . . Unauthorized Hacks 8 | . 8 . . . Terminals 6 | . 6 . . . Operators 1 | . 1 . . . Skim 5 | . 5 . . . Fabricators . | . . . . . Repair Stations . | . . . . . Recycling Units 2 | . 2 . . . Tunnel 2 | . 2 . . . Scanalyzers . | . . . . . Garrison Access . | . . . . . Data Cores Recovered 1 | . 1 . . . Used . | . . . . . Hacking Detections 9 | . 9 . . . Full Trace Events . | . . . . . Feedback Events . | . . . . . Feedback Blocked . | . . . . . Robot Schematics Acquired . | . . . . . Robots Built . | . . . . . Authchips . | . . . . . Time . | . . . . . Total Robot Build Rating . | . . . . . Part Schematics Acquired . | . . . . . Parts Built . | . . . . . Authchips . | . . . . . Time . | . . . . . Total Part Build Rating . | . . . . . Parts Repaired . | . . . . . Time . | . . . . . Parts Recycled . | . . . . . Recycled Matter . | . . . . . Retrieved Matter . | . . . . . Retrieved Components . | . . . . . Parts Scanalyzed . | . . . . . Part Schematics Acquired . | . . . . . Parts Damaged . | . . . . . Bothacking | -11 -10 -10 -10 -9 ------------ Run | Yrd Mat Min Exi Min Used RIF Installer . | . . . . . Robots Hacked . | . . . . . Non-combat . | . . . . . Combat . | . . . . . Robot Hacks Applied . | . . . . . Relay Couplers Released . | . . . . . Fabnet Peak Effective % . | . . . . . Robots Rewired . | . . . . . Allies Hacked . | . . . . . Hacks Repelled . | . . . . . Allies | -11 -10 -10 -10 -9 -------- Run | Yrd Mat Min Exi Min Total Allies . | . . . . . Largest Group . | . . . . . Highest-Rated Group . | . . . . . Highest-Rated Ally . | . . . . . Total Orders . | . . . . . Ally Attacks . | . . . . . Total Damage . | . . . . . Kills . | . . . . . Allies Corrupted . | . . . . . Allies Melted . | . . . . . Intel | -11 -10 -10 -10 -9 ------- Run | Yrd Mat Min Exi Min Robot Analysis Total 2 | . 2 . . . Derelict Logs Recovered 2 | . . 1 . 1 Drone Launches . | . . . . . Drone Recoveries . | . . . . . Exploration | -11 -10 -10 -10 -9 ------------- Run | Yrd Mat Min Exi Min Turns Passed 5258 | 257 2094 1057 1191 659 Spaces Moved 2049 | 102 804 412 493 238 Core 11 | 11 . . . . Treads 2038 | 91 804 412 493 238 Legs . | . . . . . Wheels . | . . . . . Hover . | . . . . . Flight . | . . . . . Fastest Speed 50 | 50 160 240 240 240 Average Speed 208 | 155 170 240 240 240 Slowest Speed 240 | 200 240 240 240 240 Overloaded Moves . | . . . . . Propulsion Burnouts . | . . . . . Robots Hopped . | . . . . . Cave-ins Triggered . | . . . . . Exploration Rate (%) 68 | 5 98 94 91 53 Regions Visited 4 Branch Regions 3 Pre-discovered Areas 4 | . 3 . 1 . Known Exits Taken 2 | . . 1 1 . Unknown Exits Taken 2 | 1 1 . . . Scrap Searched 3 | . . 1 . 2 Spaces Dug 6 | . 5 . . 1 Terrain Destroyed 109 | . 5 2 . 102 Melee 1 | . . . . 1 Projectile 8 | . 5 2 . 1 AOE 100 | . . . . 100 Terrain Rammed . | . . . . . Walls Destroyed . | . . . . . Machines Disabled . | . . . . . Actions | -11 -10 -10 -10 -9 --------- Run | Yrd Mat Min Exi Min Total 2791 | 155 1390 442 504 300 Wait 499 | 15 452 4 . 28 Move 2045 | 101 803 411 492 238 Hop . | . . . . . Pick Up 44 | 4 27 2 7 4 Fast Attach 11 | 6 5 . . . Attach 8 | . 3 1 1 3 Detach 1 | . . 1 . . Swap 21 | 1 12 1 . 7 Drop 32 | . 21 2 4 5 Fire 126 | 28 67 20 . 11 Melee 4 | . . . . 4 Ram . | . . . . . Kick . | . . . . . Crush . | . . . . . Escape Stasis . | . . . . . Rewire . | . . . . . Trap . | . . . . . Miscellaneous . | . . . . . Route ------- -11/Scrapyard -10/Materials (discovered 5 exits: *Mat x3 / [*Min] / Sub) -10/Mines (discovered 4 exits: *Mat x2 / *Exi / Sub) -10/Exiles (discovered 2 exits: *Min x2) -9/Mines (discovered 2 exits: Mat x2) History --------- Turn | Location | Event 8 | -11/Scrapyard | Discovered new exit (range 16) 258 | -11/Scrapyard | Entered Materials 304 | -10/Materials | Build established: Mutant 708 | -10/Materials | Discovered new exit (range 13) 740 | -10/Materials | Discovered new exit (range 16) 1005 | -10/Materials | Discovered new exit (range 10) 1420 | -10/Materials | Discovered new exit (range 7) 1823 | -10/Materials | Central database locked down 1941 | -10/Materials | Learned 2 Storage zone layouts 2005 | -10/Materials | Learned 4 Subcaves zone layouts 2132 | -10/Materials | Learned Storage stockpile data 2183 | -10/Materials | Learned Storage trap positions 2222 | -10/Materials | Learned location of 2 exits from Mines 2329 | -10/Materials | Identified exit to Subcaves 2352 | -10/Materials | Entered Mines 2353 | -10/Mines | Identified exit to Materials 2354 | -10/Mines | Identified exit to Exiles 2504 | -10/Mines | Found a damaged Exp. Sensor Array with a note attached 2509 | -10/Mines | Found Prototype Device 2511 | -10/Mines | Identified Exp. Sensor Array 3156 | -10/Mines | Received a Rocket Launcher from a helpful Derelict 3397 | -10/Mines | Deemed a non-threat by the Exiles lab entrance 3409 | -10/Mines | Entered Exiles 3410 | -10/Exiles | Identified exit to Mines 3473 | -10/Exiles | Met 8R-AWN 3514 | -10/Exiles | Met EX-HEX 3584 | -10/Exiles | Met EX-BIN 3613 | -10/Exiles | Aligned with FarCom system 3615 | -10/Exiles | Given EX-Vault access code 3670 | -10/Exiles | Opened EX-Vault 3684 | -10/Exiles | Found Cloak of Protection 3690 | -10/Exiles | Found Trap Reconfigurator 3703 | -10/Exiles | Found Longsword +1 3749 | -10/Exiles | Warned to stay clear of 0b10 Research branches 3819 | -10/Exiles | Met EX-DEC 3828 | -10/Exiles | Learned location of Zion (-7) 4149 | -10/Exiles | Visited The Gauntlet 4600 | -10/Exiles | Stole three prototypes: Cloak of Protection, Trap Reconfigurator, Longsword +1 4600 | -10/Exiles | Entered Mines 4601 | -9/Mines | Assembled infested the area 4601 | -9/Mines | Identified exit to Materials 4605 | -9/Mines | Core integrity fell below 50% 4638 | -9/Mines | Core integrity fell below 20% 4659 | -9/Mines | Destroyed 16 combat bots 4767 | -9/Mines | Learned location of 1 exit from Materials 5259 | -9/Mines | Destroyed by D-53 Grenadier with Mini Grenade Launcher Last Messages --------------- 05202_ U-05 Engineer lays Concrete. 05203_ U-05 Engineer builds a Wall. 05209_ Acquired 27 matter. 05211_ Searching scrap... 05211_ Found EM Pulse Gun. 05211_ Found Med. Storage Unit. 05211_ Found Mining Laser. 05211_ Found 51 Matter. 05212_ Acquired 16 matter. 05214_ U-05 Engineer builds a Wall. 05216_ Dropped Mni. Grenade Launcher. 05217_ Acquired EM Pulse Gun. 05248_ D-53 Grenadier Lgt. Deuterium Engine blasted off. 05248_ Laser Drill disabled. 05251_ D-53 Grenadier destroyed. 05251_ Hcp. Matter Pod destroyed. 05253_ Imp. Light Cannon destroyed. 05257_ The unstable cave ceiling collapses. 05257_ Ion Engine destroyed. 05258_ The unstable cave ceiling collapses. Map ----- +----------------------------------------------------+ | ?????????????????????????????????????????????????? | | ?????????????????????????????????????????????????? | | ?????????????????????????????????????????????????? | | ?????????????????????????????????????????????????? | | ?????????????????????????????????????????????????? | | ?????????????????????????????????????????????????? | | ?????????????????????????????????????????????????? | | ?????????????????????????????????????????????????? | | ?????????????????????????????????????????????????? | | ?????????????????????????????????????????????